bitfinex-derivatives/quotes_SOLF0:USTF0_20250212
["timestamp","ask_amount","ask_price","bid_price","bid_amount"]
[1739380693713,0.03445229,195.27,195.23,0.03460142]
[1739380694815,22.78522698,195.27,195.23,0.03460142]
[1739380695117,22.78522698,195.27,195.16,26.90965276]
[1739380695118,5.1229,195.2,195.16,26.90965276]
[1739380695811,2.2087,195.2,195.16,26.90965276]
[1739380696008,5.1234,195.17,195.16,19.56985276]
[1739380696212,5.1234,195.17,195.16,4.88965276]
[1739380696412,22.75077469,195.18,195.14,53.81930552]
[1739380696615,5.124,195.15,195.14,53.81930552]
[1739380698414,5.1242,195.14,195.13,69.73974796]
[1739380698614,5.1242,195.14,195.13,43.36874796]
[1739380701717,36.92198022,195.15,195.12,1.36004595]
[1739380701920,36.92198022,195.15,195.11,7.81007067]
[1739380702115,36.88693484,195.12,195.0,5.1278]
[1739380702317,36.88693484,195.12,194.96,4.5993]
[1739380702519,5.125,195.11,195.04,5.1267]
[1739380702722,36.88693484,195.12,194.96,41.48623484]
[1739380702915,36.88693484,195.12,195.09,0.03292703]
[1739380703918,36.88693484,195.12,195.01,6.6167929]
[1739380704119,42.01273484,195.08,195.02,5.1272]
[1739380704619,34.2163813,195.08,195.02,5.1272]
[1739380705122,0.03533873,195.07,195.03,0.03240833]
[1739380706120,0.03533873,195.07,195.06,5.1263]
[1739380707325,0.03533873,195.07,195.03,0.03240833]
[1739380708126,0.03533873,195.07,195.04,5.1268]
[1739380708322,0.03533873,195.07,195.03,0.03240833]
[1739380709329,5.16143873,195.07,195.03,0.03240833]
[1739380710929,5.1268,195.05,195.03,0.03240833]
[1739380711126,5.1268,195.05,195.01,5.1276]
[1739380711127,36.88693484,195.04,194.92,2.3716]
[1739380711524,5.1281,195.0,194.95,5.1291]
[1739380712429,0.039437,194.99,194.96,0.03768131]
[1739380713030,0.039437,194.99,194.97,5.1285]
[1739380713329,2.251,195.1,194.96,36.92461615]
[1739380713528,2.251,195.1,194.98,36.88693484]
[1739380713731,2.251,195.1,194.99,2.5006]
[1739380713929,139.72373158,195.13,195.07,5.1258]
[1739380713930,83.83423895,195.12,195.07,5.1258]
[1739380714230,83.83423895,195.12,195.07,36.88693484]
[1739380714631,0.03686177,195.11,195.08,0.03747749]
[1739380714834,83.83423895,195.12,195.08,0.03747749]
[1739380715036,56.85943895,195.12,195.1,36.88693484]
[1739380715236,139.72373158,195.14,195.1,36.88693484]
[1739380715439,139.72373158,195.14,195.13,36.88693484]
[1739380715632,107.4864785,195.15,195.13,36.88693484]
[1739380715837,90.0650785,195.15,195.13,36.88693484]
[1739380716038,81.3546785,195.15,195.13,36.88693484]
[1739380716340,81.3546785,195.15,195.14,5.1242]
[1739380716545,0.03635626,195.16,195.13,36.88693484]
[1739380717345,0.03635626,195.16,195.15,5.124]
[1739380719539,0.03635626,195.16,195.12,0.03348592]
[1739380720734,0.03635626,195.16,195.15,5.124]
[1739380722739,0.03635626,195.16,195.12,0.03348592]
[1739380723145,0.03635626,195.16,195.12,5.15828592]
[1739380723343,0.03635626,195.16,195.12,0.03348592]
[1739380723946,0.03635626,195.16,195.15,5.124]
[1739380725147,0.03635626,195.16,195.12,0.03348592]
[1739380725340,0.03635626,195.16,195.14,5.1242]
[1739380725847,5.16015626,195.16,195.12,0.03348592]
[1739380726145,0.03635626,195.16,195.12,0.03348592]
[1739380726339,0.03635626,195.16,195.14,5.124]
[1739380727646,0.03635626,195.16,195.15,5.124]
[1739380735851,22.6817848,195.23,195.15,5.124]
[1739380736344,22.6817848,195.2,195.04,243.50545919]
[1739380736548,22.6817848,195.17,195.04,220.82367439]
[1739380736951,5.1243,195.14,195.04,220.82367439]
[1739380737247,0.0374752,195.12,195.09,0.03609673]
[1739380737551,0.0374752,195.12,195.11,5.125]
[1739380737752,0.0374752,195.12,195.09,0.03609673]
[1739380738555,5.1622752,195.12,195.09,0.03609673]
[1739380739151,0.0374752,195.12,195.09,5.16159673]
[1739380740852,5.1253,195.1,195.09,0.03609673]
[1739380741949,5.1623752,195.12,195.09,0.03609673]
[1739380742152,0.0374752,195.12,195.09,0.03609673]
[1739380742855,0.0374752,195.12,195.0,2.4506]
[1739380743055,0.0374752,195.12,194.98,22.6817848]
[1739380743255,5.1256,195.09,195.05,5.1265]
[1739380743450,2.3904,195.13,194.98,22.6817848]
[1739380743755,2.3904,195.13,195.01,22.6817848]
[1739380743957,2.3904,195.13,195.08,5.1257]
[1739380744160,0.03696253,195.09,195.05,0.03450186]
[1739380746057,0.03696253,195.09,194.95,25.0853848]
[1739380746256,5.1267,195.05,195.0,5.1278]
[1739380747056,5.1269,195.04,195.0,5.1278]
[1739380747259,5.16063426,195.04,195.01,0.03500045]
[1739380747458,0.03373426,195.04,195.01,0.03500045]
[1739380749062,5.1274,195.02,195.01,0.03500045]
[1739380749257,0.03373426,195.04,194.95,5.129]
[1739380749560,2.3645,195.01,194.91,16.23105]
[1739380749757,22.6817848,194.99,194.91,16.23105]
[1739380750557,0.03302195,194.97,194.93,0.03896244]
[1739380750762,5.1298,194.93,194.91,16.23105]
[1739380751061,22.6817848,194.93,194.87,20.07487949]
[1739380751258,5.1314,194.87,194.83,20.07487949]
[1739380751462,22.6817848,194.9,194.83,20.07487949]
[1739380751864,5.1321,194.85,194.83,20.07487949]
[1739380752358,22.6817848,194.87,194.83,20.07487949]
[1739380752562,5.1321,194.84,194.83,16.30047949]
[1739380755063,5.1321,194.84,194.83,12.52587949]
[1739380755265,5.1324,194.83,194.82,0.03371214]
[1739380755562,22.6817848,194.87,194.82,0.03371214]
[1739380756068,22.6817848,194.84,194.7,22.6817848]
[1739380756557,5.1336,194.79,194.73,5.1348]
[1739380756758,5.1336,194.79,194.7,22.6817848]
[1739380757264,0.03433615,194.76,194.73,0.03686848]
[1739380757564,22.6817848,194.84,194.73,0.03686848]
[1739380757766,0.0394378,194.76,194.73,0.03686848]
[1739380758065,4.9815,194.86,194.73,0.03686848]
[1739380758360,5.1329,194.82,194.76,5.134]
[1739380758565,0.03922867,194.81,194.78,0.03524249]
[1739380758764,0.03922867,194.81,194.77,5.134]
[1739380758966,0.03922867,194.81,194.78,0.03498136]
[1739380759463,5.1334,194.79,194.78,0.03498136]
[1739380759761,22.72101347,194.81,194.74,1.89348]
[1739380760262,5.1345,194.75,194.74,1.89348]
[1739380760461,22.6817848,194.75,194.64,4.7632]
[1739380760659,22.6817848,194.78,194.64,4.7632]
[1739380760861,5.1355,194.72,194.64,27.4449848]
[1739380761166,2.4614,194.95,194.71,22.6817848]
[1739380761463,2.4614,194.95,194.88,5.1311]
[1739380761864,5.129,194.96,194.88,5.1311]
[1739380762066,5.1286,194.98,194.89,5.1306]
[1739380762363,0.03738323,194.94,194.9,0.03719319]
[1739380763968,22.6817848,194.99,194.9,0.03719319]
[1739380764266,2.4614,195.01,194.9,0.03719319]
[1739380764869,2.4614,195.01,194.93,5.1297]
[1739380764870,5.1284,194.99,194.93,5.1297]
[1739380765064,0.03596646,194.97,194.93,5.1297]
[1739380765373,0.03596646,194.97,194.93,5.16715798]
[1739380765575,0.03596646,194.97,194.93,0.03745798]
[1739380766269,0.03596646,194.97,194.96,5.129]
[1739380767372,5.1264,195.06,194.99,5.128]
[1739380767874,9.9863,195.08,194.96,22.6817848]
[1739380768070,22.6817848,195.14,194.99,22.6817848]
[1739380768271,22.6817848,195.11,194.96,22.6817848]
[1739380768470,0.03396533,195.08,195.05,0.03896473]
[1739380769372,0.03396533,195.08,195.05,5.16526473]
[1739380769574,0.03396533,195.08,195.05,0.03896473]
[1739380770275,0.03396533,195.08,195.06,5.1263]
[1739380771073,0.03396533,195.08,195.07,5.1261]
[1739380771878,22.6817848,195.14,195.07,5.1261]
[1739380772073,5.1248,195.12,195.07,5.1261]
[1739380772476,22.6817848,195.14,195.05,5.16536473]
[1739380772978,0.03382264,195.11,195.05,5.16536473]
[1739380773281,22.71560744,195.11,195.05,0.03896473]
[1739380773980,22.6817848,195.08,194.94,2.2824]
[1739380774176,22.6817848,195.05,194.94,2.2824]
[1739380774374,5.1279,195.01,194.96,5.1289]
[1739380775079,5.1274,195.02,194.95,5.129]
[1739380775279,0.03777877,195.0,194.97,0.03878601]
[1739380775679,5.16577877,195.0,194.97,0.03878601]
[1739380775875,0.03777877,195.0,194.97,0.03878601]
[1739380777083,5.16567877,195.0,194.97,0.03878601]
[1739380777286,0.03777877,195.0,194.97,0.03878601]
[1739380778497,0.03777877,195.0,194.97,5.16728601]
[1739380778692,0.03777877,195.0,194.97,0.03878601]
[1739380779289,5.1282,194.99,194.97,0.03878601]
[1739380779899,5.1284,194.98,194.97,0.03878601]
[1739380780598,5.1284,194.98,194.97,8.601e-05]
[1739380782692,5.1312,194.88,194.83,7.0606]
[1739380783401,22.6817848,195.0,194.84,22.6817848]
[1739380783596,0.94301265,194.99,194.84,22.6817848]
[1739380783788,22.6817848,195.0,194.84,22.6817848]
[1739380783993,5.1302,194.92,194.9,0.03257397]
[1739380784593,0.03554236,194.93,194.9,0.03257397]
[1739380785401,27.1901848,195.03,194.9,0.03257397]
[1739380785601,4.5084,195.03,194.9,0.03257397]
[1739380785798,4.5084,195.03,194.87,22.6817848]
[1739380786000,5.1293,194.95,194.89,5.1307]
[1739380786198,22.6817848,195.0,194.89,5.1307]
[1739380786596,22.6817848,195.0,194.93,0.03868255]
[1739380786792,0.03291597,194.96,194.93,0.03868255]
[1739380786996,22.6817848,194.94,194.83,7.0606]
[1739380787197,22.6817848,194.91,194.75,49.38025799]
[1739380787398,22.6817848,194.91,194.76,6.9981]
[1739380787610,22.6817848,194.91,194.8,5.1329]
[1739380787904,4.6606,194.9,194.8,5.1329]
[1739380788104,5.1321,194.84,194.77,26.69847319]
[1739380788301,22.6817848,194.85,194.83,1.783e-05]
[1739380788706,22.6817848,194.85,194.77,26.69847319]
[1739380788901,22.6817848,194.88,194.77,26.69847319]
[1739380789505,0.03823749,194.84,194.81,0.03311478]
[1739380790101,5.1328,194.82,194.81,0.03311478]
[1739380793008,27.8145848,194.82,194.81,0.03311478]
[1739380793909,5.1328,194.82,194.81,0.03311478]
[1739380796513,5.17063749,194.84,194.81,0.03311478]
[1739380796917,0.03823749,194.84,194.81,0.03311478]
[1739380798118,22.6817848,194.82,194.71,2.4235]
[1739380798315,22.6817848,194.79,194.71,2.4235]
[1739380798616,5.1347,194.75,194.69,9.7532]
[1739380798810,5.1347,194.75,194.69,5.1359]
[1739380799207,5.1349,194.74,194.72,0.03714578]
[1739380800014,0.03272238,194.75,194.72,0.03714578]
[1739380802515,5.135,194.73,194.72,0.03714578]
[1739380802726,22.6817848,194.73,194.58,22.6817848]
[1739380802924,5.1362,194.69,194.63,5.1376]
[1739380803121,22.6817848,194.73,194.59,7.2578]
[1739380803316,5.1365,194.68,194.59,7.2578]
[1739380803523,22.6817848,194.7,194.59,7.2578]
[1739380803917,22.6817848,194.7,194.63,0.03554745]
[1739380804122,0.0351836,194.66,194.63,0.03554745]
[1739380804323,22.6817848,194.73,194.63,0.03554745]
[1739380804524,4.5488,194.75,194.59,7.2578]
[1739380804919,5.1355,194.72,194.66,5.1367]
[1739380805516,101.66,194.8,194.59,7.2578]
[1739380805725,0.03561874,194.71,194.67,22.71487559]
[1739380806030,2.2799,194.9,194.7,22.6817848]
[1739380806221,22.6817848,194.91,194.76,22.6817848]
[1739380806521,22.6817848,194.91,194.83,5.1324]
[1739380806522,5.1313,194.88,194.83,5.1324]
[1739380806722,22.6817848,194.88,194.73,22.6817848]
[1739380807225,0.03789279,194.82,194.79,0.03620119]
[1739380807523,22.6817848,194.91,194.79,0.03620119]
[1739380808022,22.6817848,194.91,194.76,22.6817848]
[1739380808723,0.0382583,194.85,194.84,5.1321]
[1739380808923,101.66,194.94,194.82,22.71462456]
[1739380809114,101.66,194.94,194.83,2.4732]
[1739380809523,5.1286,194.98,194.92,5.13]
[1739380809831,25.1476848,195.03,194.92,5.13]
[1739380810229,0.03930999,194.97,194.93,0.03942497]
[1739380810738,0.03930999,194.97,194.94,5.1295]
[1739380811327,24.9284848,195.06,194.93,0.03942497]
[1739380811827,24.9284848,195.06,194.91,22.6817848]
[1739380812627,0.03936655,195.0,194.97,0.0334884]
[1739380813226,0.53457,195.01,194.97,0.0334884]
[1739380813727,5.1263,195.07,194.98,5.1283]
[1739380814123,22.6817848,195.09,194.98,5.1283]
[1739380814428,22.6817848,195.09,194.95,4.8382]
[1739380814624,0.03615418,195.05,195.02,0.03720855]
[1739380816927,5.1271,195.03,195.02,0.03720855]
[1739380821133,22.6817848,195.03,194.85,22.6817848]
[1739380821334,22.6817848,195.0,194.87,2.3536]
[1739380821530,22.6817848,195.0,194.83,4.7094]
[1739380821531,22.6817848,194.94,194.83,4.7094]
[1739380822336,5.1311,194.88,194.83,4.7094]
[1739380822829,22.6817848,194.94,194.84,0.03309411]
[1739380823030,5.1316,194.86,194.84,0.03309411]
[1739380824033,5.1319,194.85,194.84,0.03309411]
[1739380825836,5.17057962,194.87,194.84,0.03309411]
[1739380826744,0.03907962,194.87,194.84,0.03309411]
[1739380827539,22.6817848,194.85,194.71,6.8469]
[1739380827834,22.6817848,194.88,194.71,6.8469]
[1739380828638,0.03590543,194.81,194.78,0.0366369]
[1739380828827,5.1325,194.83,194.78,0.0366369]
[1739380829027,0.03280256,194.81,194.78,0.0366369]
[1739380829228,22.6817848,194.85,194.78,0.0366369]
[1739380829229,5.1334,194.8,194.78,0.0366369]
[1739380829434,0.03719771,194.81,194.78,0.0366369]
[1739380829634,22.6817848,194.88,194.78,0.0366369]
[1739380829831,0.03628828,194.81,194.78,0.0366369]
[1739380830038,5.1325,194.83,194.78,5.1702369]
[1739380830336,0.0387412,194.81,194.78,5.1702369]
[1739380831838,0.0387412,194.81,194.79,5.1332]
[1739380832139,0.0387412,194.81,194.78,0.0366369]
[1739380833240,5.1334,194.79,194.78,0.0366369]
[1739380833843,0.0387412,194.81,194.78,0.0366369]
[1739380835238,5.1334,194.79,194.78,0.0366369]
[1739380838241,22.6817848,194.79,194.71,5.1355]
[1739380838443,5.1345,194.75,194.71,5.1355]
[1739380839136,22.6817848,194.79,194.66,2.7058]
[1739380839337,5.1343,194.76,194.72,5.1353]
[1739380839538,0.03563075,194.74,194.72,5.1353]
[1739380839842,0.03563075,194.74,194.71,0.03878028]
[1739380840639,0.03563075,194.74,194.73,5.135]
[1739380840833,22.6817848,194.85,194.71,0.03878028]
[1739380841034,2.7723,194.86,194.71,0.03878028]
[1739380841243,2.7723,194.86,194.67,22.6817848]
[1739380841643,5.1332,194.81,194.67,22.6817848]
[1739380841942,22.6817848,194.83,194.67,22.6817848]
[1739380842142,0.03331158,194.76,194.72,0.03262551]
[1739380843242,2.7031,194.87,194.73,22.6817848]
[1739380843440,22.6817848,194.91,194.76,22.6817848]
[1739380843739,5.1309,194.89,194.84,5.1319]
[1739380843945,5.1309,194.89,194.79,22.6817848]
[1739380844242,5.2992,194.93,194.79,22.6817848]
[1739380844243,5.1305,194.91,194.79,22.6817848]
[1739380844443,22.6817848,195.0,194.82,22.72062494]
[1739380844638,0.9430033,194.99,194.82,22.6817848]
[1739380844834,27.9809848,195.0,194.82,22.6817848]
[1739380845744,0.03684333,194.93,194.89,0.03541665]
[1739380846246,0.03684333,194.93,194.9,5.1305]
[1739380846647,0.03684333,194.93,194.89,0.03541665]
[1739380847247,0.03684333,194.93,194.91,5.1301]
[1739380848543,0.03684333,194.93,194.89,0.03541665]
[1739380848741,0.03684333,194.93,194.9,5.1305]
[1739380849043,0.03684333,194.93,194.89,0.03541665]
[1739380849246,22.6817848,195.03,194.89,0.03541665]
[1739380849644,5.1279,195.01,194.95,5.1292]
[1739380850347,30.9101848,195.06,194.89,2.7508]
[1739380850540,22.71818981,195.0,194.96,0.03565896]
[1739380851647,0.03640501,195.0,194.96,0.03565896]
[1739380852648,5.1287,194.97,194.96,0.03565896]
[1739380852849,0.03640501,195.0,194.96,0.03565896]
[1739380853347,5.16440501,195.0,194.96,5.16455896]
[1739380853544,0.03640501,195.0,194.96,0.03565896]
[1739380855956,0.03640501,195.0,194.97,5.1285]
[1739380856345,0.03640501,195.0,194.96,0.03565896]
[1739380856544,0.03640501,195.0,194.99,5.1282]
[1739380856751,0.03640501,195.0,194.96,0.03565896]
[1739380857347,5.16450501,195.0,194.96,5.16455896]
[1739380859053,0.03640501,195.0,194.96,0.03565896]
[1739380859255,0.03640501,195.0,194.96,5.16455896]
[1739380859949,0.03640501,195.0,194.96,0.03565896]
[1739380860555,5.16440501,195.0,194.96,5.16445896]
[1739380860858,0.03640501,195.0,194.96,0.03565896]
[1739380861352,2.6796,195.11,194.97,22.6817848]
[1739380861652,22.6817848,195.26,195.07,22.6817848]
[1739380861854,22.6817848,195.2,195.08,5.8397]
[1739380862158,22.6817848,195.14,195.06,5.1262]
[1739380862557,5.1261,195.07,195.0,5.1277]
[1739380862755,22.6817848,195.07,194.92,2.9635]
[1739380863157,22.6817848,195.07,194.93,22.6817848]
[1739380863359,22.6817848,195.1,194.93,22.6817848]
[1739380863565,22.6817848,195.07,194.92,2.9635]
[1739380863855,0.03671694,195.03,195.0,0.03380341]
[1739380864166,25.5249848,195.13,195.0,0.03380341]
[1739380864359,2.8432,195.13,195.0,0.03380341]
[1739380864554,25.5249848,195.13,195.04,5.1268]
[1739380864758,22.6817848,195.07,194.93,22.6817848]
[1739380864958,22.6817848,195.07,194.92,2.9635]
[1739380865359,0.03446175,195.01,194.98,0.03539837]
[1739380866256,22.71624655,195.01,194.98,0.03539837]
[1739380866462,22.71624655,195.01,194.86,5.5726]
[1739380866762,22.6817848,195.01,194.86,5.5726]
[1739380867764,0.03320142,194.95,194.92,0.03872686]
[1739380869361,22.71498622,194.95,194.92,0.03872686]
[1739380869761,22.71498622,194.95,194.76,196.8536]
[1739380869965,22.6817848,194.92,194.77,2.9999]
[1739380870162,5.1303,194.91,194.85,5.1317]
[1739380870662,3.0211,194.94,194.78,22.6817848]
[1739380870866,0.03270463,194.9,194.87,5.1312]
[1739380871060,0.03270463,194.9,194.86,0.03918915]
[1739380871261,0.03270463,194.9,194.88,5.131]
[1739380871563,0.03337702,194.91,194.87,0.03448273]
[1739380871962,22.6817848,194.98,194.9,5.1304]
[1739380872161,0.03677123,194.91,194.9,5.1304]
[1739380872362,22.6817848,195.01,194.84,22.6817848]
[1739380872662,0.03729607,194.92,194.89,0.0375597]
[1739380872961,5.1268,195.05,195.0,5.1279]
[1739380873559,2.9097,195.09,194.96,22.6817848]
[1739380873965,0.03486947,195.04,195.01,0.03720445]
[1739380874166,0.03486947,195.04,195.01,5.16470445]
[1739380874465,0.03486947,195.04,195.01,0.03720445]
[1739380876060,5.1274,195.02,195.01,0.03720445]
[1739380877263,22.71665427,195.04,194.91,5.6801]
[1739380877464,22.6817848,195.01,194.86,6.65366621]
[1739380877658,22.6817848,195.01,194.86,12.59396621]
[1739380878060,22.6817848,195.01,194.86,8.7654]
[1739380878259,22.6817848,194.98,194.86,8.7654]
[1739380878563,22.71611149,194.95,194.92,0.03636128]
[1739380879064,22.71611149,194.95,194.83,6.65366621]
[1739380879368,22.6817848,194.92,194.83,6.65366621]
[1739380879760,5.131,194.89,194.84,0.5016]
[1739380879968,3.0305,194.94,194.79,133.3315299]
[1739380879969,36.98976312,194.85,194.79,133.3315299]
[1739380880267,36.98976312,194.8,194.79,133.3315299]
[1739380880769,5.1336,194.79,194.78,0.03312029]
[1739380880963,5.1336,194.79,194.73,6.73203224]
[1739380881164,5.1336,194.79,194.77,0.03609078]
[1739380881464,0.03939721,194.8,194.77,0.03609078]
[1739380883969,5.17259721,194.8,194.77,0.03609078]
[1739380884163,0.03939721,194.8,194.77,0.03609078]
[1739380884358,5.1337,194.78,194.77,0.03609078]
[1739380887560,0.03939721,194.8,194.77,0.03609078]
[1739380887775,5.17279721,194.8,194.77,0.03609078]
[1739380890362,5.1337,194.78,194.77,0.03609078]
[1739380895468,0.03939721,194.8,194.77,0.03609078]
[1739380896277,5.1337,194.78,194.77,0.03609078]
[1739380896976,5.1337,194.78,194.77,9.078e-05]
[1739380900276,36.98976312,194.86,194.77,9.078e-05]
[1739380900578,36.98976312,194.91,194.75,36.98976312]
[1739380900772,36.98976312,194.94,194.75,36.98976312]
[1739380901070,36.98976312,194.91,194.83,5.1322]
[1739380901374,5.132,194.85,194.71,38.01693172]
[1739380901675,5.132,194.85,194.71,23.80002589]
[1739380901875,5.132,194.85,194.76,0.03399751]
[1739380902076,0.03877768,194.8,194.76,0.03399751]
[1739380902375,22.77285729,194.85,194.71,1.0271686]
[1739380902677,22.77285729,194.85,194.76,0.03934009]
[1739380902678,0.03238402,194.8,194.76,0.03934009]
[1739380904072,0.03238402,194.8,194.76,5.17344009]
[1739380905978,0.03238402,194.8,194.76,0.03934009]
[1739380907074,85.04336987,194.97,194.77,22.77285729]
[1739380907277,85.04336987,194.97,194.82,22.77285729]
[1739380907481,85.04336987,194.97,194.93,5.1297]
[1739380908284,85.07816405,194.97,194.93,0.03630079]
[1739380908583,107.85102134,194.97,194.93,0.03630079]
[1739380908785,22.77285729,194.94,194.93,0.03630079]
[1739380909282,5.1295,194.94,194.93,0.03630079]
[1739380912682,5.1306,194.9,194.84,3.0396]
[1739380913382,22.77285729,195.01,194.86,22.77285729]
[1739380913585,107.81622716,195.04,194.86,22.77285729]
[1739380913786,0.03354191,194.95,194.93,5.1296]
[1739380913981,0.94282043,195.03,194.93,5.1296]
[1739380914182,0.0371772,194.96,194.92,0.03828394]
[1739380914384,85.04336987,195.04,194.93,22.77285729]
[1739380914578,85.04336987,195.04,194.84,194.0396]
[1739380914579,85.04336987,195.04,194.96,22.77285729]
[1739380914778,52.44976987,195.04,195.03,5.1271]
[1739380914980,36.70615054,195.04,195.03,5.1271]
[1739380915185,32.09875054,195.04,195.03,5.1271]
[1739380915386,140.22388399,195.1,195.07,5.126]
[1739380915785,140.25754722,195.1,195.07,5.126]
[1739380916091,140.25754722,195.1,195.07,5.16178654]
[1739380916286,140.25754722,195.1,195.07,0.03578654]
[1739380917488,5.1256,195.09,195.07,0.03578654]
[1739380918583,0.03366323,195.1,195.07,0.03578654]
[1739380918789,5.1258,195.08,195.0,5.1279]
[1739380919287,5.1261,195.07,195.0,5.1279]
[1739380919683,3.033,195.15,195.01,5.1275]
[1739380920080,0.03483373,195.1,195.06,0.03669971]
[1739380921089,0.03483373,195.1,195.06,5.16279971]
[1739380921482,0.03483373,195.1,195.09,5.1255]
[1739380921686,0.00063373,195.1,195.09,5.1255]
[1739380921893,140.22388399,195.3,195.09,213.77285729]
[1739380922193,140.22388399,195.3,195.19,22.77285729]
[1739380923091,0.03452603,195.26,195.23,0.0332944]
[1739380923784,5.1214,195.25,195.23,0.0332944]
[1739380924389,5.1216,195.24,195.23,0.0332944]
[1739380924685,22.80738332,195.26,195.1,23.79797261]
[1739380924892,0.94168317,195.25,195.1,23.79797261]
[1739380925190,5.1228,195.2,195.11,5.1249]
[1739380926090,0.03907933,195.17,195.14,0.03830585]
[1739380926288,0.00937933,195.17,195.15,36.8656153]
[1739380926492,0.94150757,195.29,195.15,36.8656153]
[1739380926994,36.8656153,195.3,195.17,5.1234]
[1739380927392,36.8656153,195.3,195.12,36.8656153]
[1739380927393,5.1214,195.25,195.19,5.1228]
[1739380927693,0.03758928,195.25,195.22,0.03493119]
[1739380928085,5.9241,195.31,195.19,36.8656153]
[1739380928291,0.03358181,195.25,195.22,0.03767488]
[1739380928793,0.03358181,195.25,195.24,5.1216]
[1739380929392,0.03358181,195.25,195.22,0.03767488]
[1739380929989,0.03358181,195.25,195.22,5.15977488]
[1739380930391,0.03358181,195.25,195.22,0.03767488]
[1739380931095,5.1219,195.23,195.22,0.03767488]
[1739380931293,0.03358181,195.25,195.22,0.03767488]
[1739380931799,5.15508181,195.25,195.22,0.03767488]
[1739380932995,0.03358181,195.25,195.22,0.03767488]
[1739380933697,5.1216,195.24,195.22,0.03767488]
[1739380934193,0.03358181,195.25,195.22,0.03767488]
[1739380934797,5.1219,195.23,195.22,0.03767488]
[1739380934991,0.03358181,195.25,195.17,5.1233]
[1739380935197,36.8656153,195.24,195.1,1.02511532]
[1739380935805,36.8656153,195.21,195.1,1.02511532]
[1739380936000,5.8142,195.2,195.1,1.02511532]
[1739380936299,0.03886387,195.17,195.14,0.03697583]
[1739380936501,5.1237,195.16,195.14,0.03697583]
[1739380937397,36.8656153,195.3,195.14,36.90259113]
[1739380937591,273.78853638,195.44,195.18,36.8656153]
[1739380937592,39.9605153,195.37,195.18,36.8656153]
[1739380937902,0.94124434,195.36,195.21,36.8656153]
[1739380938494,3.0949,195.37,195.21,36.8656153]
[1739380938692,0.0371956,195.3,195.27,0.03322114]
[1739380939096,5.1185,195.36,195.27,0.03322114]
[1739380939400,0.03606777,195.3,195.27,0.03322114]
[1739380939799,0.03606777,195.3,195.29,5.1201]
[1739380939999,0.00526777,195.3,195.29,5.1201]
[1739380942901,0.00526777,195.3,195.27,5.15382114]
[1739380943403,0.00526777,195.3,195.27,0.03322114]
[1739380943599,5.81276777,195.3,195.27,0.03322114]
[1739380945205,10.93296777,195.3,195.27,0.03322114]
[1739380945604,5.12546777,195.3,195.27,0.03322114]
[1739380945807,5.8075,195.47,195.29,36.8656153]
[1739380946006,0.9407991,195.46,195.33,36.8656153]
[1739380946203,5.8075,195.47,195.39,5.1175]
[1739380946910,5.8075,195.47,195.4,5.1174]
[1739380947110,0.03724191,195.45,195.41,0.03744212]
[1739380949316,0.03724191,195.45,195.41,5.15454212]
[1739380950213,0.03724191,195.45,195.41,0.03744212]
[1739380950607,0.03724191,195.45,195.42,36.8656153]
[1739380951820,0.94035218,195.55,195.54,5.1137]
[1739380952016,5.218e-05,195.63,195.54,36.8656153]
[1739380952215,83.78853638,195.7,195.54,36.8656153]
[1739380952413,2.8893,195.69,195.54,36.8656153]
[1739380952621,2.8893,195.69,195.57,5.1127]
[1739380952921,36.8656153,195.66,195.48,36.8656153]
[1739380953221,28.6845153,195.63,195.48,36.8656153]
[1739380953421,6.0916,195.68,195.41,191.0]
[1739380953422,6.0916,195.68,195.52,36.8656153]
[1739380953622,6.0916,195.68,195.56,36.8656153]
[1739380954419,0.03671402,195.64,195.6,0.03310823]
[1739380955224,0.03671402,195.64,195.63,5.1114]
[1739380955419,140.22388399,195.72,195.63,36.8656153]
[1739380956124,6.0916,195.74,195.63,36.8656153]
[1739380956422,3.0282,195.74,195.66,36.8656153]
[1739380956635,0.03604,195.7,195.67,0.0330121]
[1739380956923,0.03604,195.7,195.69,41.9754153]
[1739380957123,2.7752,195.82,195.69,36.8656153]
[1739380957424,2.7752,195.82,195.72,36.8656153]
[1739380958018,5.1068,195.81,195.74,5.1085]
[1739380958229,120.82753655,195.89,195.72,36.8656153]
[1739380958230,36.8656153,195.93,195.76,36.8656153]
[1739380958417,0.03504386,195.79,195.77,1.02160698]
[1739380958614,42.5069153,195.93,195.77,1.02160698]
[1739380958923,36.8656153,195.9,195.77,1.02160698]
[1739380959127,5.1056,195.86,195.83,0.03907618]
[1739380959626,0.03894429,195.87,195.83,0.03907618]
[1739380961326,0.03894429,195.87,195.84,36.8656153]
[1739380961527,0.03894429,195.87,195.83,0.03907618]